bitfinex/quotes_SOLUSD_20250601
["timestamp","ask_amount","ask_price","bid_price","bid_amount"]
[1748806095663,6.44016599,155.28,155.23,26.35389547]
[1748806095829,26.35204562,155.28,155.23,26.35389547]
[1748806099759,26.35204562,155.28,155.24,19.91187963]
[1748806100551,26.35156974,155.29,155.24,19.91187963]
[1748806103546,26.35156974,155.29,155.24,26.35350533]
[1748806103940,19.91187963,155.28,155.21,6.44288383]
[1748806104134,19.91187963,155.27,155.22,19.91187963]
[1748806104455,19.91187963,155.26,155.21,26.35476346]
[1748806105033,150.5341,155.31,155.25,19.91187963]
[1748806105238,163.27049485,155.31,155.26,12.73639485]
[1748806105456,12.73639485,155.3,155.25,12.73639485]
[1748806105969,12.73639485,155.27,155.22,19.1788636]
[1748806107767,12.73639485,155.27,155.22,6.44246875]
[1748806107972,6.43915003,155.3,155.22,12.73639485]
[1748806108274,19.17554488,155.3,155.24,12.73639485]
[1748806108570,12.73639485,155.29,155.24,12.73639485]
[1748806109072,12.73639485,155.29,155.21,6.44276916]
[1748806109073,12.73639485,155.29,155.23,12.73639485]
[1748806109240,19.90779465,155.29,155.23,19.90779465]
[1748806109969,19.90779465,155.28,155.23,19.90779465]
[1748806111165,19.90779465,155.28,155.23,26.34958306]
[1748806117287,19.90779465,155.28,155.22,6.44246875]
[1748806117454,19.90779465,155.28,155.23,19.90779465]
[1748806118776,19.90779465,155.28,155.23,26.34945264]
[1748806118954,19.90779465,155.28,155.23,6.44165799]
[1748806119771,19.90779465,155.28,155.23,26.34945264]
[1748806121762,19.90779465,155.26,155.21,10.36]
[1748806121962,19.90779465,155.25,155.21,10.36]
[1748806122758,19.90779465,155.25,155.21,16.80286041]
[1748806125166,19.90779465,155.25,155.21,36.71065506]
[1748806125556,42.09841205,155.3,155.23,19.90779465]
[1748806125557,6.43956468,155.29,155.23,19.90779465]
[1748806125764,19.90779465,155.28,155.23,19.90779465]
[1748806126968,19.90779465,155.28,155.23,26.34982323]
[1748806130058,19.90779465,155.3,155.25,19.90779465]
[1748806130678,19.90779465,155.29,155.25,19.90779465]
[1748806131060,19.90779465,155.29,155.25,26.34886733]
[1748806132078,19.90779465,155.3,155.25,26.34886733]
[1748806134363,19.90779465,155.3,155.26,19.90779465]
[1748806135964,19.90779465,155.3,155.26,26.34851117]
[1748806138184,191.29763782,155.32,155.26,26.34851117]
[1748806138185,35.9591963,155.32,155.28,19.90779465]
[1748806139462,35.9591963,155.32,155.28,26.34756156]
[1748806142165,35.9591963,155.32,155.29,19.90779465]
[1748806145097,35.9591963,155.32,155.29,26.34723456]
[1748806145286,35.9591963,155.32,155.29,19.17298301]
[1748806149668,35.9591963,155.32,155.28,12.7335431]
[1748806150900,35.9591963,155.32,155.29,6.43956468]
[1748806164722,35.9591963,155.32,155.29,12.7335431]
[1748806165922,35.9591963,155.32,155.29,19.17297329]
[1748806168525,14.59070851,155.35,155.31,12.7335431]
[1748806168714,14.59070851,155.35,155.32,12.7335431]
[1748806169014,27.32425161,155.35,155.31,12.7335431]
[1748806170623,33.76135174,155.35,155.31,12.7335431]
[1748806171623,12.7335431,155.33,155.28,12.7335431]
[1748806172617,12.7335431,155.33,155.28,19.1733862]
[1748806176231,12.7335431,155.33,155.29,12.7335431]
[1748806177232,6.43783078,155.34,155.29,12.7335431]
[1748806177528,14.59070851,155.35,155.29,12.7335431]
[1748806177529,19.17149785,155.33,155.29,12.7335431]
[1748806179730,19.17149785,155.33,155.28,12.7335431]
[1748806180214,6.43795475,155.33,155.28,19.17348149]
[1748806180413,19.17149785,155.33,155.28,19.17348149]
[1748806181030,19.17149785,155.33,155.29,12.7335431]
[1748806181031,6.43795475,155.33,155.29,12.7335431]
[1748806182129,19.17149785,155.33,155.28,12.7335431]
[1748806183945,12.7335431,155.32,155.28,6.43984494]
[1748806184232,12.7335431,155.32,155.28,19.17338804]
[1748806186134,12.7335431,155.32,155.28,12.7335431]
[1748806189248,12.7335431,155.31,155.26,12.7335431]
[1748806191053,19.17256674,155.31,155.26,12.7335431]
[1748806191431,12.7335431,155.3,155.26,12.7335431]
[1748806193246,12.7335431,155.3,155.25,14.48706264]
[1748806193436,12.7335431,155.3,155.26,12.7335431]
[1748806195248,12.7335431,155.29,155.24,6.44149284]
[1748806195432,12.7335431,155.29,155.24,19.17503594]
[1748806198525,12.7335431,155.29,155.25,12.7335431]
[1748806198730,19.17186398,155.32,155.27,12.7335431]
[1748806199827,6.43832088,155.32,155.27,12.7335431]
[1748806200031,19.17186398,155.32,155.27,12.7335431]
[1748806200345,19.17186398,155.32,155.27,19.17390939]
[1748806201062,148.9,155.33,155.3,12.7335431]
[1748806201241,14.59070851,155.35,155.31,12.7335431]
[1748806201443,14.59070851,155.35,155.33,12.7335431]
[1748806201646,0.888804,155.37,155.34,12.7335431]
[1748806202161,0.888804,155.37,155.35,12.7335431]
[1748806203856,0.888804,155.37,155.35,19.17033665]
[1748806204953,0.888804,155.37,155.35,12.7335431]
[1748806205352,0.888804,155.37,155.35,19.17056524]
[1748806209271,0.888804,155.37,155.35,12.7335431]
[1748806209850,0.888804,155.37,155.35,19.1705465]
[1748806211176,0.888804,155.37,155.36,12.7335431]
[1748806213486,0.888804,155.37,155.36,19.17020633]
[1748806214456,0.888804,155.37,155.36,58.71020633]
[1748806217586,0.888804,155.37,155.36,77.35985519]
[1748806217896,0.888804,155.37,155.36,129.83012759]
[1748806218695,0.888804,155.37,155.36,47.51276323]
[1748806218888,0.888804,155.37,155.36,58.71020633]
[1748806219209,0.888804,155.37,155.36,12.7335431]
[1748806219710,0.888804,155.37,155.36,19.17020633]
[1748806221204,0.888804,155.37,155.36,26.31050612]
[1748806222191,0.888804,155.37,155.33,10.3]
[1748806222513,20.76264689,155.37,155.33,30.17384289]
[1748806222713,20.76264689,155.37,155.33,10.3]
[1748806222714,19.87384289,155.36,155.33,10.3]
[1748806222892,19.87384289,155.36,155.31,19.87384289]
[1748806223515,19.87384289,155.36,155.32,19.87384289]
[1748806224613,7.32512054,155.37,155.32,19.87384289]
[1748806224796,19.87384289,155.36,155.32,19.87384289]
[1748806225000,19.87384289,155.36,155.31,19.87384289]
[1748806226225,19.87384289,155.36,155.31,26.31256609]
[1748806228903,0.888804,155.37,155.35,19.87384289]
[1748806229226,0.888804,155.37,155.36,19.87384289]
[1748806229523,0.888804,155.37,155.35,19.87384289]
[1748806230397,0.888804,155.37,155.36,19.87384289]
[1748806230801,0.888804,155.37,155.35,26.31080562]
[1748806231217,0.888804,155.37,155.35,6.43696273]
[1748806231406,0.888804,155.37,155.35,19.87384289]
[1748806233099,0.888804,155.37,155.34,6.43710206]
[1748806233100,0.888804,155.37,155.36,19.87384289]
[1748806234908,0.888804,155.37,155.36,26.31050612]
[1748806236521,0.888804,155.37,155.36,65.83050612]
[1748806236916,0.888804,155.37,155.36,84.48015498]
[1748806251347,0.888804,155.37,155.34,26.31133484]
[1748806253324,0.888804,155.37,155.35,19.87384289]
[1748806254341,0.888804,155.37,155.34,26.31133484]
[1748806259052,0.888804,155.37,155.35,19.87384289]
[1748806259257,0.888804,155.37,155.36,19.87384289]
[1748806260336,0.888804,155.37,155.36,26.31050612]
[1748806261254,0.888804,155.37,155.36,36.59050612]
[1748806270965,0.888804,155.37,155.36,10.28]
[1748806271265,20.76264689,155.37,155.32,10.28]
[1748806271563,20.76264689,155.37,155.33,26.31161228]
[1748806273046,20.76264689,155.37,155.33,19.87384289]
[1748806273360,19.87384289,155.36,155.32,10.28]
[1748806273980,19.87384289,155.36,155.32,30.15384289]
[1748806274676,19.87384289,155.36,155.32,36.59214378]
[1748806276557,19.87384289,155.36,155.32,30.15384289]
[1748806279574,19.87384289,155.36,155.32,36.59210581]
[1748806280357,0.888804,155.37,155.32,36.59210581]
[1748806280568,20.76264689,155.37,155.32,36.59210581]
[1748806280869,19.87384289,155.36,155.32,36.59210581]
[1748806281072,20.76264689,155.37,155.32,36.59210581]
[1748806282249,19.87384289,155.36,155.32,36.59210581]
[1748806283450,19.87384289,155.36,155.32,16.71826292]
[1748806285073,19.87384289,155.33,155.28,36.57368509]
[1748806285871,19.87384289,155.32,155.28,36.57368509]
[1748806286261,19.87384289,155.33,155.28,36.57368509]
[1748806286453,19.87384289,155.33,155.29,19.87384289]
[1748806286872,19.87384289,155.33,155.3,6.43915003]
[1748806288474,19.87384289,155.34,155.3,6.43915003]
[1748806288855,19.87384289,155.34,155.29,26.31325777]
[1748806289374,19.87384289,155.35,155.3,19.87384289]
[1748806289872,19.87384289,155.35,155.31,19.87384289]
[1748806290073,19.87384289,155.36,155.31,19.87384289]
[1748806291078,19.87384289,155.36,155.31,26.31232252]
[1748806292872,19.87384289,155.35,155.3,26.31284717]
[1748806293288,6.43675826,155.36,155.3,26.31284717]
[1748806293474,19.87384289,155.35,155.3,26.31284717]
[1748806294158,19.87384289,155.34,155.3,6.43900428]
[1748806300556,26.31147886,155.34,155.29,26.31324832]
[1748806300869,19.87384289,155.33,155.29,6.43940543]
[1748806302790,19.87384289,155.34,155.29,26.31324832]
[1748806305567,6.43707756,155.35,155.29,26.31324832]
[1748806305768,19.87384289,155.34,155.29,26.31324832]
[1748806308272,26.31092045,155.35,155.3,26.31280628]
[1748806308665,19.87384289,155.35,155.3,26.31280628]
[1748806308865,148.9,155.36,155.3,26.31280628]
[1748806309072,19.87384289,155.35,155.3,26.31280628]
[1748806312471,148.9,155.36,155.32,19.87384289]
[1748806313982,19.87384289,155.35,155.31,19.87384289]
[1748806314302,19.87384289,155.35,155.3,26.31280628]
[1748806314502,0.888804,155.37,155.34,19.87384289]
[1748806314793,0.888804,155.37,155.36,19.87384289]
[1748806316588,0.888804,155.37,155.36,72.49909787]
[1748806316772,0.888804,155.37,155.36,98.49909787]
[1748806316978,0.888804,155.37,155.36,72.49909787]
[1748806319498,162.02581255,155.47,155.39,26.0]
[1748806319499,13.12581255,155.47,155.39,26.0]
[1748806319701,13.12581255,155.47,155.44,26.30709746]
[1748806319901,32.99965544,155.47,155.43,19.87384289]
[1748806320107,34.50725544,155.47,155.42,26.307882]
[1748806321900,14.63341255,155.47,155.43,19.87384289]
[1748806322099,34.50725544,155.47,155.43,19.87384289]
[1748806322401,34.50725544,155.47,155.42,26.307882]
[1748806326691,40.93944753,155.47,155.42,26.307882]
[1748806326902,34.50725544,155.47,155.42,26.307882]
[1748806328089,34.50725544,155.47,155.43,19.87384289]
[1748806328980,14.63341255,155.47,155.43,19.87384289]
[1748806329409,34.50725544,155.47,155.43,19.87384289]
[1748806330600,32.99965544,155.47,155.43,26.30760432]
[1748806331188,13.12581255,155.47,155.44,19.87384289]
[1748806332391,13.12581255,155.47,155.44,26.30702967]
[1748806336008,13.12581255,155.47,155.45,19.87384289]
[1748806336211,13.12581255,155.47,155.44,26.30702967]
[1748806336509,13.12581255,155.47,155.44,19.87384289]
[1748806338123,19.87384289,155.46,155.4,10.24]
[1748806338292,19.87384289,155.46,155.41,19.87384289]
[1748806338492,19.87384289,155.46,155.42,19.87384289]
[1748806338909,39.43180115,155.47,155.42,19.87384289]
[1748806340005,39.43180115,155.47,155.42,26.30798171]
[1748806340607,32.99965544,155.47,155.42,26.30798171]
[1748806340808,32.99965544,155.47,155.43,19.87384289]
[1748806341114,32.99965544,155.47,155.44,19.87384289]
[1748806341115,13.12581255,155.47,155.44,19.87384289]
[1748806341696,13.12581255,155.47,155.43,6.43353146]
[1748806342014,13.12581255,155.47,155.43,19.87384289]
[1748806342415,32.99965544,155.47,155.43,19.87384289]
[1748806343303,39.43179816,155.47,155.42,26.30790857]
[1748806343510,39.43179816,155.47,155.42,19.87384289]
[1748806343707,19.87384289,155.44,155.4,10.24]
[1748806343911,19.87384289,155.43,155.4,10.24]
[1748806344119,19.87384289,155.42,155.37,26.30972106]
[1748806344502,19.87384289,155.43,155.38,19.87384289]
[1748806345420,26.30760908,155.43,155.38,19.87384289]
[1748806345800,19.87384289,155.42,155.38,19.87384289]
[1748806346913,19.87384289,155.42,155.37,26.30972106]
[1748806349523,19.87384289,155.42,155.38,19.87384289]
[1748806349822,148.9,155.45,155.41,19.87384289]
[1748806351027,168.77384289,155.45,155.41,19.87384289]
[1748806351626,168.77384289,155.45,155.4,26.3086496]
[1748806352228,148.9,155.45,155.4,26.3086496]
[1748806352412,168.77384289,155.45,155.41,19.87384289]
[1748806353118,168.77384289,155.45,155.4,26.3086496]
[1748806353932,19.87384289,155.43,155.39,30.11384289]
[1748806354130,19.87384289,155.43,155.39,10.24]
[1748806355729,19.87384289,155.42,155.39,10.24]
[1748806356731,19.87384289,155.43,155.39,10.24]
[1748806357813,19.87384289,155.43,155.39,30.11384289]
[1748806358018,19.87384289,155.43,155.34,24.07629975]
[1748806358019,65.42,155.43,155.31,18.64964886]
[1748806358220,19.87384289,155.38,155.33,19.87384289]
[1748806358417,19.87384289,155.39,155.33,19.87384289]
[1748806358625,19.87384289,155.4,155.35,19.87384289]
[1748806359414,19.87384289,155.4,155.36,6.43666323]
[1748806359624,19.87384289,155.41,155.36,26.31050612]
[1748806359940,148.9,155.42,155.38,19.87384289]
[1748806360320,168.77384289,155.42,155.37,19.87384289]
[1748806360923,148.9,155.42,155.38,19.87384289]
[1748806361321,19.87384289,155.43,155.39,6.43542055]
[1748806366952,19.87384289,155.46,155.41,19.87384289]
[1748806368157,19.87384289,155.46,155.42,6.43417835]
[1748806369546,19.87384289,155.46,155.41,26.30832023]
[1748806376457,19.87384289,155.45,155.41,6.43447734]
[1748806379159,162.02581255,155.47,155.41,26.30832023]
[1748806379367,162.02581255,155.47,155.43,19.87384289]
[1748806379778,13.12581255,155.47,155.44,19.87384289]
[1748806379980,13.12581255,155.47,155.46,19.87384289]
[1748806380184,39.09370647,155.5,155.46,19.87384289]
[1748806380468,39.09370647,155.5,155.44,10.22]
[1748806380668,19.87384289,155.48,155.44,30.09384289]
[1748806381263,19.87384289,155.48,155.44,36.52690823]
[1748806381563,19.87384289,155.49,155.44,36.52690823]
[1748806383045,19.87384289,155.49,155.44,30.09384289]
[1748806383269,19.87384289,155.48,155.44,10.22]
[1748806384082,19.63781989,155.48,155.44,10.22]
[1748806385172,26.06983729,155.48,155.44,10.22]
[1748806385347,19.87384289,155.46,155.44,10.22]
[1748806385554,19.87384289,155.46,155.41,19.87384289]
[1748806385866,19.87384289,155.45,155.4,31.70334289]
[1748806386169,19.87384289,155.44,155.4,16.65485233]
[1748806386652,19.87384289,155.45,155.4,36.52869522]
[1748806389050,19.87384289,155.44,155.4,36.52869522]
[1748806389750,19.87384289,155.45,155.4,36.52869522]
[1748806389951,19.87384289,155.45,155.41,19.87384289]
[1748806391674,6.43223786,155.47,155.41,19.87384289]
[1748806391675,6.43223786,155.47,155.41,26.30804385]
[1748806391881,19.87384289,155.45,155.41,26.30804385]
[1748806393054,26.30686027,155.45,155.4,36.52873234]
[1748806393256,19.87384289,155.44,155.4,36.52873234]
[1748806394857,19.87384289,155.43,155.4,10.22]
[1748806395067,6.43341925,155.44,155.36,10.22]
[1748806395068,19.87384289,155.41,155.36,10.22]
[1748806395267,65.72726214,155.44,155.36,10.22]
[1748806395474,19.87384289,155.4,155.36,16.65652392]
[1748806395983,19.87384289,155.41,155.37,19.87384289]
[1748806396359,19.87384289,155.41,155.36,16.65652392]
[1748806396360,59.29384289,155.44,155.39,19.87384289]
[1748806396562,19.87384289,155.44,155.39,19.87384289]
[1748806396764,19.87384289,155.43,155.38,19.87384289]
[1748806396964,19.87384289,155.42,155.38,6.43553902]
[1748806398063,19.87384289,155.43,155.38,26.30938191]
[1748806402877,19.87384289,155.43,155.38,19.87384289]
[1748806404204,19.87384289,155.43,155.39,6.43542055]
[1748806405506,19.87384289,155.44,155.39,26.30926344]
[1748806405796,19.87384289,155.45,155.4,19.87384289]
[1748806406370,19.87384289,155.45,155.41,6.43459236]
[1748806416109,19.87384289,155.45,155.41,26.30843525]
[1748806416695,156.82791814,155.46,155.41,26.30843525]
[1748806416888,19.87384289,155.45,155.41,26.30843525]
[1748806417095,19.87384289,155.44,155.41,6.43459236]
[1748806419986,156.82791814,155.46,155.41,6.43459236]
[1748806420190,19.87384289,155.44,155.41,6.43459236]
[1748806421103,156.82791814,155.46,155.41,6.43459236]
[1748806421304,19.87384289,155.44,155.41,6.43459236]
[1748806423214,156.82791814,155.46,155.41,6.43459236]
[1748806423411,12.71446761,155.44,155.41,6.43459236]
[1748806423716,156.82791814,155.46,155.41,6.43459236]
[1748806423921,12.71446761,155.44,155.41,6.43459236]
[1748806428217,12.71446761,155.43,155.4,6.43486868]
[1748806429501,12.71446761,155.43,155.39,6.43542055]
[1748806434625,12.71446761,155.43,155.39,19.14988816]
[1748806435526,12.71446761,155.44,155.39,19.14988816]
[1748806438534,163.26057565,155.46,155.39,19.14988816]
[1748806438832,12.71446761,155.44,155.39,19.14988816]
[1748806441731,12.71446761,155.44,155.4,12.71446761]
[1748806441925,12.71446761,155.45,155.41,12.71446761]
[1748806442436,200.70817408,155.5,155.44,12.71446761]
[1748806442625,200.70817408,155.5,155.45,12.71446761]
[1748806443433,200.70817408,155.5,155.46,6.43252283]
[1748806443737,12.71446761,155.49,155.46,6.43252283]
[1748806446725,12.71446761,155.49,155.45,19.14725864]
[1748806447036,12.71446761,155.46,155.43,10.22]
[1748806447246,12.71446761,155.45,155.43,10.22]
[1748806447435,12.71446761,155.46,155.43,10.22]
[1748806448018,12.71446761,155.46,155.43,16.65373207]
[1748806450048,194.4247145,155.5,155.44,12.71446761]
[1748806450212,12.71446761,155.48,155.45,6.43293663]
[1748806451444,12.71446761,155.48,155.44,6.43335048]
[1748806452542,12.71446761,155.47,155.44,6.43335048]
[1748806453220,12.71446761,155.48,155.44,6.43335048]
[1748806454453,12.71446761,155.47,155.44,6.43335048]
[1748806455637,12.71446761,155.48,155.44,6.43335048]
[1748806456345,12.71446761,155.47,155.44,6.43335048]
[1748806458531,12.71446761,155.46,155.43,16.65363965]
[1748806458724,12.71446761,155.48,155.44,12.71446761]
[1748806459141,12.71446761,155.49,155.44,12.71446761]
[1748806460347,12.71446761,155.48,155.44,19.14743008]
[1748806461451,194.42467457,155.5,155.44,19.14743008]
[1748806461654,200.70817408,155.5,155.45,12.71446761]
[1748806461948,200.70817408,155.5,155.46,12.71446761]
[1748806462532,200.70817408,155.5,155.45,12.71446761]
[1748806463552,200.70817408,155.5,155.46,6.43252283]
[1748806465553,161.61446761,155.5,155.46,6.43252283]
[1748806465849,161.61446761,155.5,155.45,12.71446761]
[1748806466232,12.71446761,155.49,155.44,6.43335048]
[1748806466439,12.71446761,155.48,155.44,6.43335048]
[1748806469132,12.71446761,155.47,155.43,10.22]
[1748806470266,148.9,155.5,155.43,10.22]
[1748806470267,12.71446761,155.46,155.43,10.22]
[1748806470831,12.71446761,155.47,155.43,16.65372155]
[1748806471669,12.71446761,155.46,155.43,16.65372155]
[1748806473161,12.71446761,155.48,155.43,29.36818916]
[1748806475358,12.71446761,155.48,155.43,19.14818916]
[1748806477361,155.33097981,155.5,155.43,19.14818916]
[1748806477570,12.71446761,155.49,155.44,12.71446761]
[1748806478257,148.9,155.5,155.44,12.71446761]
[1748806478454,12.71446761,155.49,155.45,12.71446761]
[1748806478964,12.71446761,155.49,155.46,6.43252283]
[1748806479348,12.71446761,155.48,155.45,6.43286338]
[1748806480662,12.71446761,155.49,155.45,6.43286338]
[1748806481442,12.71446761,155.49,155.44,19.14768714]
[1748806481759,19.14576211,155.49,155.44,19.14768714]
[1748806483158,12.71446761,155.49,155.44,19.14768714]
[1748806485169,155.3309818,155.5,155.44,19.14768714]
[1748806485364,12.71446761,155.49,155.44,19.14768714]
[1748806486044,12.71446761,155.49,155.45,12.71446761]
[1748806486248,148.9,155.5,155.47,12.71446761]
[1748806486576,161.61446761,155.53,155.48,12.71446761]
[1748806488851,161.61446761,155.53,155.48,19.14599431]
[1748806489279,148.9,155.53,155.49,12.71446761]
[1748806489580,12.71446761,155.52,155.48,19.14599431]
[1748806489750,6.42838776,155.56,155.51,12.71446761]
[1748806489950,12.71446761,155.55,155.5,12.71446761]
[1748806490150,6.42838776,155.56,155.48,6.4315267]
[1748806490375,12.71446761,155.55,155.51,12.71446761]
[1748806490857,12.71446761,155.55,155.51,19.14458364]
[1748806491252,12.71446761,155.53,155.47,10.22]
[1748806491478,12.71446761,155.49,155.45,32.43284571]
[1748806491656,12.71446761,155.5,155.45,45.14731332]
[1748806491851,12.71446761,155.5,155.46,12.71446761]
[1748806492055,12.71446761,155.48,155.43,1.626]
[1748806492253,12.71446761,155.47,155.43,8.05966558]
[1748806492565,12.71446761,155.48,155.43,20.77413319]
[1748806492757,50.85787044,155.52,155.43,8.05966558]
[1748806492758,12.71446761,155.47,155.43,8.05966558]
[1748806492946,12.71446761,155.47,155.43,6.43366558]
[1748806493147,19.85966388,155.47,155.43,6.43366558]
[1748806493553,19.85966388,155.48,155.43,26.29332946]
[1748806495768,19.85966388,155.47,155.42,30.07966388]
[1748806495964,19.85966388,155.46,155.42,30.07966388]
[1748806496164,19.85966388,155.46,155.42,36.51379752]
[1748806496973,19.85966388,155.47,155.42,36.51379752]
[1748806499178,26.29181013,155.47,155.42,36.51379752]
[1748806499381,19.85966388,155.46,155.42,10.22]
[1748806499556,19.85966388,155.45,155.42,10.22]
[1748806500178,6.43214625,155.47,155.42,10.22]
[1748806500179,19.85966388,155.44,155.42,10.22]
[1748806500381,19.85966388,155.44,155.39,21.37666388]
[1748806501076,19.85966388,155.43,155.39,19.85966388]
[1748806501284,19.85966388,155.42,155.38,10.34]
[1748806501459,19.85966388,155.4,155.35,120.75926388]
[1748806501657,19.85966388,155.44,155.35,112.47966388]
[1748806501658,19.85966388,155.39,155.35,112.47966388]
[1748806502084,6.43417835,155.42,155.35,92.62]
[1748806502280,19.85966388,155.38,155.34,36.63704707]
[1748806502890,6.43417835,155.42,155.34,36.63704707]
[1748806503080,6.43417835,155.42,155.35,19.85966388]
[1748806503285,19.85966388,155.4,155.35,26.2965514]
[1748806503594,1.6136,155.43,155.36,19.85966388]
[1748806503782,19.85966388,155.41,155.36,19.85966388]
[1748806504088,19.85966388,155.4,155.36,19.85966388]
[1748806504684,8.04746782,155.43,155.35,26.2965514]
[1748806504984,19.85966388,155.4,155.35,26.2965514]
[1748806505170,19.85966388,155.39,155.35,26.2965514]
[1748806507065,6.43444207,155.42,155.35,26.2965514]
[1748806507266,19.85966388,155.39,155.35,26.2965514]
[1748806507463,96.83383146,155.44,155.38,19.85966388]
[1748806507464,37.37416758,155.44,155.38,19.85966388]
[1748806507676,37.37416758,155.44,155.36,26.0]
[1748806507677,19.85966388,155.43,155.39,19.85966388]
[1748806507981,19.85966388,155.43,155.39,6.43542055]
[1748806508780,37.37416758,155.44,155.39,26.29508443]
[1748806508983,19.85966388,155.43,155.39,26.29508443]
[1748806510872,57.23383146,155.44,155.39,26.29508443]
[1748806511669,37.37416758,155.44,155.39,26.29508443]
[1748806511865,37.37416758,155.44,155.41,19.85966388]
[1748806512373,37.37416758,155.44,155.42,19.85966388]
[1748806513781,37.37416758,155.44,155.42,26.29379059]
[1748806515365,37.37416758,155.44,155.43,19.85966388]
[1748806515688,37.37416758,155.44,155.43,26.29342827]
[1748806518999,37.37416758,155.44,155.43,19.85966388]
[1748806519990,63.66735849,155.44,155.35,10.34]
[1748806520189,19.85966388,155.42,155.38,19.85966388]
[1748806520370,43.80769461,155.44,155.38,19.85966388]
[1748806520371,19.85966388,155.43,155.38,19.85966388]
[1748806520575,43.80769461,155.44,155.39,19.85966388]
[1748806520576,37.37416758,155.44,155.39,19.85966388]
[1748806520777,37.37416758,155.44,155.4,19.85966388]
[1748806520971,37.37416758,155.44,155.41,26.29398251]
[1748806521197,37.37416758,155.44,155.43,19.85966388]
[1748806522988,37.37416758,155.44,155.41,6.43431863]
[1748806523311,37.37416758,155.44,155.42,19.85966388]
[1748806524004,37.37416758,155.44,155.43,6.43376439]
[1748806527184,37.37416758,155.44,155.42,26.29370162]
[1748806528991,37.37416758,155.44,155.41,6.43459236]
[1748806529197,19.85966388,155.43,155.4,10.34]
[1748806529910,57.23383146,155.44,155.4,10.34]
[1748806531116,19.85966388,155.43,155.4,10.34]
[1748806534502,43.80752745,155.44,155.4,10.34]
[1748806534700,63.66719133,155.44,155.4,10.34]
[1748806536113,19.85966388,155.43,155.4,10.34]
[1748806538420,19.85966388,155.43,155.4,16.77489186]
[1748806538600,19.85966388,155.43,155.4,10.34]
[1748806541504,37.37416758,155.44,155.4,10.34]
[1748806541711,57.23383146,155.44,155.4,16.7749536]
[1748806542409,57.23383146,155.44,155.39,26.29497973]
[1748806546225,19.85966388,155.43,155.39,6.43531585]
[1748806549236,37.37416758,155.44,155.42,19.85966388]
[1748806551028,37.37416758,155.44,155.42,26.29358352]
[1748806552521,37.37416758,155.44,155.43,19.85966388]
[1748806554331,37.37416758,155.44,155.43,26.29342827]
[1748806555937,37.37416758,155.44,155.42,19.85966388]
[1748806557860,37.37416758,155.44,155.4,6.43500643]
[1748806557861,37.37416758,155.44,155.4,19.85966388]
[1748806558038,19.85966388,155.43,155.39,6.43536786]
[1748806559130,19.85966388,155.4,155.33,25.08755525]
[1748806559331,19.85966388,155.36,155.33,6.43790639]
[1748806559534,148.9,155.41,155.33,6.43790639]
[1748806559776,19.85966388,155.38,155.33,26.29757027]
[1748806559929,19.85966388,155.37,155.32,36.57787088]
[1748806560439,19.85966388,155.35,155.32,10.28]
[1748806561086,19.85966388,155.34,155.32,10.28]
[1748806562872,19.85966388,155.33,155.28,10.28]
[1748806563076,19.85966388,155.31,155.28,10.28]
[1748806563277,19.85966388,155.3,155.28,10.28]
[1748806563476,19.85966388,155.32,155.28,10.28]
[1748806564181,19.85966388,155.31,155.28,10.28]
[1748806568890,19.85966388,155.3,155.25,26.30088771]
[1748806569792,19.85966388,155.31,155.26,19.85966388]
[1748806570684,19.85966388,155.31,155.25,6.44122383]
[1748806570685,19.85966388,155.28,155.24,32.44152199]
[1748806570892,19.85966388,155.27,155.22,36.58206978]
[1748806571495,19.85966388,155.26,155.22,16.7224059]
[1748806571802,19.85966388,155.27,155.22,36.58206978]
[1748806573768,19.85966388,155.26,155.22,10.28]
[1748806574072,19.85966388,155.25,155.22,10.28]
[1748806574789,19.85966388,155.23,155.19,6.44366757]
[1748806574996,19.85966388,155.23,155.18,16.72405859]
[1748806575168,63.20120671,155.26,155.19,19.85966388]
[1748806575373,19.85966388,155.25,155.21,19.85966388]
[1748806575581,19.85966388,155.25,155.21,6.44288383]
[1748806575888,19.85966388,155.24,155.2,6.44318372]
[1748806576078,19.85966388,155.24,155.19,19.85966388]
[1748806576079,19.85966388,155.23,155.19,6.44362745]
[1748806576478,19.85966388,155.22,155.19,6.44362745]
[1748806577288,19.85966388,155.22,155.18,10.28]
[1748806577508,19.85966388,155.22,155.18,16.72412513]
[1748806577869,19.85966388,155.22,155.18,36.58378901]
[1748806578689,19.85966388,155.22,155.18,16.72412513]
[1748806579209,19.85966388,155.22,155.18,36.58378901]
[1748806580191,49.73839059,155.22,155.18,36.58378901]
[1748806581100,19.85966388,155.22,155.18,36.58378901]
[1748806582490,19.85966388,155.22,155.18,16.72412513]
[1748806582696,19.85966388,155.22,155.18,42.72412513]
[1748806583421,19.85966388,155.21,155.18,10.28]
[1748806583618,19.85966388,155.2,155.18,10.28]
[1748806584578,29.82592671,155.22,155.18,16.72403298]
[1748806584579,19.85966388,155.21,155.18,16.72403298]
[1748806584785,19.85966388,155.19,155.15,6.44497281]